bitfinex/quotes_ETHUSD_20241119
["timestamp","ask_amount","ask_price","bid_price","bid_amount"]
[1732032309354,0.02,3107.4,3107.0,3.21848]
[1732032309551,0.02,3107.4,3106.9,3.21856]
[1732032309869,0.02,3107.4,3107.0,3.21847]
[1732032310202,0.02,3107.4,3106.9,3.21856]
[1732032310203,0.01,3107.4,3107.1,3.21843]
[1732032310408,0.02,3107.6,3107.1,3.21843]
[1732032310570,0.01,3107.4,3107.1,3.21843]
[1732032310971,0.01,3107.6,3107.1,3.21843]
[1732032311171,0.01,3107.5,3107.3,3.21815]
[1732032311398,0.01,3107.6,3107.3,3.21815]
[1732032311595,0.01,3107.6,3107.0,1.19400039]
[1732032311596,0.01,3107.4,3107.0,1.19400039]
[1732032311928,0.01,3107.4,3107.1,3.21837]
[1732032312290,0.01,3107.4,3107.3,0.65569974]
[1732032313683,0.01,3107.6,3107.3,3.87385974]
[1732032314611,0.01,3107.6,3107.3,7.09202974]
[1732032314810,0.0813978,3107.7,3107.4,3.21811]
[1732032315391,0.0813978,3107.7,3107.3,0.65569974]
[1732032315392,0.0713978,3107.7,3107.3,0.65569974]
[1732032315591,0.0713978,3107.7,3107.3,3.87388974]
[1732032316504,0.01,3107.4,3107.3,0.65569974]
[1732032317232,0.01,3107.4,3107.3,3.87384974]
[1732032317922,0.01,3107.4,3107.3,0.65569974]
[1732032319678,0.01,3107.5,3107.3,0.65569974]
[1732032319857,0.01,3107.4,3107.3,0.65569974]
[1732032320669,0.01,3107.5,3107.3,0.65569974]
[1732032320871,0.01,3107.4,3107.3,0.65569974]
[1732032322319,3.551922,3107.4,3107.3,0.65569974]
[1732032322543,4.368722,3107.4,3107.3,0.65569974]
[1732032322738,0.01,3106.9,3106.6,3.21891]
[1732032323478,0.01,3106.9,3106.8,0.64699525]
[1732032324471,4.699048,3106.9,3106.8,0.64699525]
[1732032324670,4.05334,3106.9,3106.8,0.64699525]
[1732032329006,3.21889,3106.7,3105.8,3.0]
[1732032329138,0.02,3106.4,3105.9,3.21967]
[1732032329673,4.04357,3106.4,3106.3,0.6511535]
[1732032329866,0.8244,3106.4,3106.3,0.6511535]
[1732032330264,0.02,3106.4,3106.3,0.6511535]
[1732032330819,3.23916,3106.4,3106.3,0.6511535]
[1732032331300,0.02,3106.4,3106.3,0.6511535]
[1732032332198,3.23916,3106.4,3106.3,0.6511535]
[1732032332717,0.02,3106.4,3106.3,0.6511535]
[1732032333101,3.23916,3106.4,3106.3,0.6511535]
[1732032333418,3.641291,3106.4,3106.3,0.6511535]
[1732032333621,0.01,3105.7,3105.2,3.22034]
[1732032333875,0.7616,3105.7,3105.2,3.22039]
[1732032334030,0.7616,3105.7,3105.6,0.64182373]
[1732032334210,3.99148,3105.7,3105.6,0.64182373]
[1732032334600,0.7716,3105.7,3105.6,0.64182373]
[1732032335037,0.02,3105.7,3105.6,0.64182373]
[1732032337819,0.02,3105.7,3105.6,0.64182373]
[1732032341828,0.7922,3105.7,3104.8,0.8152]
[1732032342146,0.01,3105.1,3104.8,4.03599]
[1732032342518,0.01,3105.1,3104.8,0.8152]
[1732032343018,0.01,3105.1,3105.0,0.64043403]
[1732032343218,0.02,3105.1,3105.0,0.64043403]
[1732032343650,0.42126,3105.1,3105.0,0.64043403]
[1732032344145,2.67561,3105.1,3105.0,0.64043403]
[1732032344318,2.67561,3105.1,3104.2,0.8073]
[1732032344319,2.25456,3104.9,3104.2,0.8073]
[1732032344521,0.01,3104.6,3104.2,0.8073]
[1732032345643,0.02,3104.6,3104.2,0.8073]
[1732032345841,0.02,3104.6,3104.5,0.64403812]
[1732032349747,0.01,3104.6,3104.5,0.64403812]
[1732032350025,0.01,3104.9,3104.6,0.7858]
[1732032350335,0.01,3104.9,3104.8,3.22073]
[1732032350560,0.01,3104.9,3104.8,6.44148]
[1732032350759,0.01,3105.1,3104.9,3.22071]
[1732032350974,0.01,3104.9,3104.8,3.22073]
[1732032351457,0.01,3105.3,3104.9,3.22068]
[1732032351664,0.01,3105.3,3105.0,3.22051]
[1732032351819,0.01,3105.3,3105.1,4.00893]
[1732032352557,0.01,3105.3,3105.1,0.7885]
[1732032353074,0.01,3105.3,3104.8,4.03475]
[1732032353259,0.01,3105.1,3104.8,0.814]
[1732032354077,0.01,3105.2,3105.1,3.2205]
[1732032354284,0.01,3105.2,3105.0,0.62933236]
[1732032354426,0.01,3105.1,3105.0,0.62933236]
[1732032355077,0.01,3105.1,3104.5,4.02905]
[1732032355370,0.01,3105.1,3104.9,0.64516543]
[1732032355371,0.01,3105.0,3104.9,0.64516543]
[1732032355724,0.01,3104.8,3104.5,0.808]
[1732032355929,0.01,3104.6,3104.3,3.22127]
[1732032356127,0.776,3105.4,3105.2,3.22034]
[1732032356425,0.01,3105.6,3105.2,3.22034]
[1732032356568,0.01,3105.5,3105.2,3.22034]
[1732032356735,0.01,3105.5,3105.1,3.22044]
[1732032357071,0.01,3105.5,3105.0,3.91403765]
[1732032357282,0.01,3105.5,3105.0,3.22053]
[1732032357478,0.01,3105.5,3105.0,3.2205]
[1732032357939,0.01,3105.5,3105.0,6.44103]
[1732032358143,0.01,3105.5,3105.1,3.2205]
[1732032358370,0.01,3105.5,3105.2,3.22034]
[1732032358881,0.01,3105.5,3105.2,6.44068]
[1732032359084,0.01,3105.5,3105.2,3.22034]
[1732032359641,0.01,3105.5,3105.4,0.6577804]
[1732032360134,0.8361,3105.5,3105.4,0.6577804]
[1732032364610,0.01,3105.5,3105.4,0.6577804]
[1732032367189,0.02,3105.5,3105.4,0.6577804]
[1732032367593,0.8121,3105.5,3105.4,0.6577804]
[1732032368105,0.01,3105.1,3104.6,0.8238]
[1732032368412,0.02,3105.1,3104.9,3.22063]
[1732032369407,0.02,3105.1,3104.7,3.22085]
[1732032369746,0.02,3105.1,3104.8,3.22081]
[1732032369747,0.01,3104.9,3104.8,3.22081]
[1732032370036,0.01,3105.1,3104.9,3.22067]
[1732032370600,0.01,3105.1,3104.7,3.22083]
[1732032370797,0.01,3104.9,3104.8,3.22081]
[1732032371019,0.01,3104.9,3104.8,3.86875552]
[1732032371542,0.01,3104.9,3104.8,0.64794552]
[1732032372534,0.01,3104.9,3104.8,3.86875552]
[1732032372695,0.02,3105.1,3104.9,3.22069]
[1732032373440,0.01,3105.0,3104.9,3.22065]
[1732032373642,0.7921,3105.5,3104.9,4.00728555]
[1732032373643,0.01,3105.2,3104.9,4.00728555]
[1732032373850,0.01,3105.2,3104.8,1.42484552]
[1732032373851,0.02,3105.5,3105.1,3.2205]
[1732032374011,0.01,3105.5,3105.3,3.22024]
[1732032374195,0.01,3105.4,3105.3,4.04974]
[1732032374402,0.02,3105.7,3105.5,3.22009]
[1732032374601,0.02,3105.7,3105.4,3.22018]
[1732032374843,0.01,3105.7,3105.3,4.04974]
[1732032375008,0.02,3105.9,3105.6,3.21998]
[1732032375344,0.02,3106.1,3105.8,3.21972]
[1732032375513,0.02,3106.1,3105.9,3.21962]
[1732032375895,0.02,3106.1,3105.8,0.8246]
[1732032376109,0.01,3106.1,3105.8,4.04435]
[1732032376601,0.01,3105.9,3105.5,0.8014]
[1732032376801,0.01,3105.3,3104.9,6.22066]
[1732032377225,0.01,3105.3,3105.0,3.22061]
[1732032377432,0.01,3105.3,3104.9,3.22065]
[1732032377631,0.01,3105.2,3105.0,3.22057]
[1732032378152,0.01,3105.2,3104.8,4.02211]
[1732032378300,0.01,3105.2,3104.9,3.22063]
[1732032378500,0.01,3105.2,3105.1,3.2205]
[1732032378742,0.01,3105.5,3105.1,3.2205]
[1732032378910,0.01,3105.6,3105.3,3.22019]
[1732032379121,0.01,3105.6,3105.4,3.22019]
[1732032379706,0.01,3105.5,3105.3,6.44042]
[1732032380041,0.01,3105.6,3105.4,3.22019]
[1732032380245,0.01,3105.4,3105.1,3.8752615]
[1732032380454,0.01,3105.4,3105.1,7.0956515]
[1732032380757,0.01,3105.4,3105.1,3.8752215]
[1732032381104,0.8296,3105.4,3105.1,0.6548115]
[1732032381445,0.01,3105.2,3105.1,0.6548115]
[1732032381644,0.02,3105.2,3105.1,0.6548115]
[1732032384280,0.801,3105.2,3104.3,6.2213]
[1732032384487,0.02,3104.6,3104.1,4.03037]
[1732032385057,0.02,3104.6,3104.2,3.22142]
[1732032385242,0.01,3104.5,3104.1,4.0304]
[1732032385440,4.73488777,3105.4,3103.9,3.22174]
[1732032385441,0.01,3104.3,3103.9,3.22174]
[1732032386511,0.01,3104.3,3103.8,0.8089]
[1732032386692,0.01,3104.3,3104.1,3.22154]
[1732032386990,0.01,3104.3,3104.2,3.22137]
[1732032387142,0.01,3104.3,3104.1,3.2215]
[1732032387466,0.01,3104.3,3104.0,3.22164]
[1732032387652,0.01,3104.3,3104.2,0.65551188]
[1732032389772,0.7942,3104.3,3104.2,0.65551188]
[1732032391004,0.01,3103.8,3103.4,3.22223]
[1732032391173,0.01,3103.8,3103.3,0.762]
[1732032391358,0.02,3103.6,3103.1,3.22248]
[1732032391571,0.02,3103.6,3103.0,0.762]
[1732032391889,0.01,3103.8,3103.7,3.22196]
[1732032392900,0.01,3104.0,3103.7,3.22196]
[1732032393197,0.01,3104.0,3103.6,0.8045]
[1732032393198,0.01,3104.0,3103.9,2.90651654]
[1732032394174,0.01,3104.1,3103.6,2.90651654]
[1732032394175,0.01,3103.8,3103.6,2.90651654]
[1732032395273,0.7419,3104.0,3103.6,2.90651654]
[1732032400712,0.768,3104.9,3103.9,2.90651654]
[1732032401050,0.768,3104.9,3104.2,6.12787654]
[1732032401389,0.768,3104.9,3104.2,2.90651654]
[1732032403790,0.7626,3105.2,3104.8,3.5576359]
[1732032404046,4.05662989,3105.8,3104.8,3.5576359]
[1732032404047,0.7776,3105.7,3104.8,3.5576359]
[1732032404788,0.7776,3105.7,3104.8,6.7783959]
[1732032405617,0.7876,3105.7,3104.8,6.7783959]
[1732032405818,0.7776,3105.7,3104.8,6.7784159]
[1732032406221,0.7776,3105.7,3104.8,7.5295159]
[1732032406422,0.7876,3105.7,3104.9,0.75295159]
[1732032407311,0.7876,3105.7,3104.8,0.65111936]
[1732032407841,0.7976,3105.7,3104.8,0.65111936]
[1732032408727,0.7922,3105.3,3104.8,0.65111936]
[1732032412970,0.8243,3104.9,3103.5,0.7849]
[1732032413119,0.01,3104.8,3103.5,4.00699]
[1732032413319,0.8243,3104.7,3103.5,0.7849]
[1732032413647,0.8243,3104.7,3104.0,0.65773932]
[1732032413854,0.8243,3104.7,3104.0,3.87927932]
[1732032414142,0.8243,3104.7,3104.0,3.87931932]
[1732032415835,0.8243,3104.7,3104.0,0.65773932]
[1732032420233,0.8243,3104.7,3104.0,1.01416491]
[1732032421242,0.8243,3104.7,3104.1,3.22152]
[1732032421439,0.8243,3104.7,3104.2,0.813]
[1732032421773,0.8243,3104.7,3104.2,4.03439]
[1732032422786,0.8243,3104.7,3104.2,0.813]
[1732032423135,0.8243,3104.7,3104.2,4.03443]
[1732032423337,0.8243,3104.7,3104.2,5.11645059]
[1732032423648,0.8243,3104.7,3104.3,3.22126]
[1732032423985,0.8243,3104.7,3104.2,1.89502059]
[1732032424211,0.8243,3104.7,3104.2,0.813]
[1732032424622,0.8243,3104.7,3104.0,0.65773932]
[1732032424912,0.8243,3104.7,3104.0,3.87937932]
[1732032425268,0.8243,3104.7,3104.0,3.22164]
[1732032425468,0.8243,3104.7,3103.8,3.98618]
[1732032425711,0.8243,3104.7,3104.4,0.63405808]
[1732032427670,0.813,3104.5,3104.4,0.63405808]
[1732032427872,0.813,3104.5,3103.3,3.22236]
[1732032428067,0.813,3104.5,3103.4,0.322236]
[1732032428310,0.813,3104.5,3103.9,0.63386492]
[1732032436719,0.813,3104.5,3103.6,3.222]
[1732032437011,0.813,3104.5,3103.6,3.5442]
[1732032437424,4.71339788,3105.1,3103.6,3.5442]
[1732032437425,4.04005533,3104.9,3104.2,3.22135]
[1732032437577,0.02,3105.3,3103.8,6.76964935]
[1732032437578,0.8279,3104.8,3103.8,6.76964935]
[1732032437779,0.8279,3104.8,3103.9,3.22171]
[1732032438104,0.8279,3104.8,3103.8,0.64132281]
[1732032438414,0.8279,3104.6,3103.8,0.64132281]
[1732032440298,4.04005533,3104.6,3103.8,0.64132281]
[1732032440541,0.8267,3104.5,3103.8,0.64132281]
[1732032441405,0.8267,3104.4,3103.8,0.64132281]
[1732032442436,4.86898166,3104.4,3103.8,0.64132281]
[1732032442649,0.8267,3104.4,3103.8,0.64132281]
[1732032448104,0.8267,3104.4,3103.6,2.90651654]
[1732032448401,0.8267,3104.4,3103.6,3.55525672]
[1732032449013,0.8267,3104.4,3103.6,0.64874018]
[1732032449220,0.7985,3104.2,3103.3,6.12880654]
[1732032449935,0.7985,3104.2,3103.3,2.90651654]
[1732032450258,0.8127,3103.8,3102.8,0.8256]
[1732032450612,0.8127,3103.8,3102.7,2.90651654]
[1732032452062,0.8227,3103.7,3102.4,2.90651654]
[1732032452271,8.47697835,3104.4,3102.8,0.63978982]
[1732032452272,0.01,3103.4,3102.8,0.63978982]
[1732032452549,0.01,3103.4,3102.1,2.90651654]
[1732032452550,0.7617,3103.1,3102.1,2.90651654]
[1732032452759,0.7617,3103.1,3102.5,0.62781307]
[1732032453427,0.8166,3102.7,3101.5,3.65991654]
[1732032453949,0.8166,3102.7,3101.3,3.22437]
[1732032454110,0.8266,3102.7,3101.3,3.22437]
[1732032454357,0.8318,3102.4,3101.2,3.71831654]
[1732032454512,0.8318,3102.4,3101.2,7.31465819]
[1732032454735,0.8318,3102.4,3101.6,0.63074266]
[1732032454928,0.8318,3102.4,3101.2,3.27834819]
[1732032455137,0.8318,3102.4,3101.5,0.64002113]
[1732032455458,0.8147,3102.1,3101.5,0.64002113]
[1732032455756,0.8147,3102.1,3101.0,3.22469]
[1732032455965,0.8147,3102.1,3101.0,4.23984265]
[1732032456562,0.8147,3102.1,3101.1,3.22459]
[1732032456872,0.7589,3101.6,3100.4,0.7687]
[1732032457011,0.7589,3101.6,3100.4,3.99401]
[1732032457215,0.7589,3101.6,3100.6,3.22517]
[1732032457414,0.7589,3101.6,3100.2,3.22555]
[1732032457716,0.01,3101.5,3100.8,0.6405366]
[1732032458060,0.7589,3101.4,3100.8,0.6405366]
[1732032458660,0.7589,3101.4,3101.0,3.22473]
[1732032458950,0.7589,3102.0,3100.9,2.90651654]
[1732032459150,0.7589,3102.0,3101.5,3.22414]
[1732032459368,0.7589,3102.0,3101.6,3.22412]
[1732032459516,0.7589,3102.0,3101.5,3.22422]
[1732032459711,0.7589,3102.0,3101.4,3.83739265]
[1732032460132,0.7589,3102.0,3101.5,3.22422]
[1732032460422,0.7589,3102.0,3101.4,3.83734265]
[1732032460632,0.8246,3103.0,3101.8,2.90651654]
[1732032460810,0.8246,3103.0,3101.6,0.7837]
[1732032460811,0.8246,3103.0,3102.1,2.90651654]
[1732032461012,0.8246,3103.0,3102.3,3.22338]
[1732032461253,0.8246,3103.0,3101.9,3.22374]
[1732032461755,0.8246,3103.0,3101.8,2.90651654]
[1732032461971,0.8246,3103.0,3102.3,3.22332]
[1732032462171,0.8246,3103.0,3102.3,4.04942]
[1732032462324,0.8246,3103.0,3102.5,3.22314]
[1732032463154,0.8246,3103.0,3102.3,4.04942]
[1732032463321,0.8246,3103.0,3102.4,0.404942]
[1732032463766,0.8246,3103.0,3102.6,3.22308]
[1732032463968,0.8246,3103.0,3102.7,3.22299]
[1732032464481,0.7859,3103.8,3102.8,3.2228]
[1732032464693,0.7859,3103.8,3102.9,3.22279]
[1732032464839,0.7859,3103.8,3103.1,3.2225]
[1732032465047,0.7859,3103.8,3103.2,3.22247]
[1732032465560,0.7859,3103.8,3103.2,3.22246]
[1732032465879,0.7859,3103.8,3103.4,3.22224]
[1732032466293,0.7821,3104.7,3103.6,3.22206]
[1732032466585,1.07475165,3104.7,3103.6,3.22206]
[1732032466888,1.07475165,3104.7,3103.8,3.22184]
[1732032467448,1.07475165,3104.7,3103.5,0.8092]
[1732032467449,0.7821,3104.7,3104.1,3.22151]
[1732032468048,0.8314,3105.2,3104.3,3.22126]
[1732032468984,0.8314,3105.2,3104.3,6.44252]
[1732032469195,0.8314,3105.2,3104.4,3.22116]
[1732032469590,0.8314,3105.2,3104.2,4.04027]
[1732032469990,0.8314,3105.2,3104.3,3.22124]
[1732032470485,0.8314,3105.2,3104.4,3.22119]
[1732032473091,0.8044,3104.2,3103.4,3.2222]
[1732032473289,0.8044,3104.2,3103.7,3.22195]
[1732032473515,0.8044,3104.2,3103.7,0.70858522]
[1732032473744,0.8044,3104.2,3103.7,3.22189]
[1732032474086,0.8044,3104.2,3103.8,3.22176]
[1732032474792,0.8044,3104.2,3103.5,3.86389215]
[1732032475088,0.8044,3104.2,3103.6,3.22198]
[1732032475492,0.8044,3104.2,3103.5,3.86389215]
[1732032476039,0.8044,3104.2,3103.6,3.22205]
[1732032476540,0.8044,3104.2,3103.8,3.22184]
[1732032476831,0.7861,3105.4,3104.4,3.22115]
[1732032477137,0.7861,3105.4,3104.3,3.22133]
[1732032478830,0.7961,3105.4,3104.0,3.22158]
[1732032479031,0.7961,3105.4,3104.0,3.22157]
[1732032479243,0.7961,3105.4,3103.8,4.0762821]
[1732032479244,0.7861,3105.4,3104.2,3.22138]
[1732032479543,0.7861,3105.4,3104.4,0.65176171]
[1732032481156,0.7861,3105.4,3104.5,0.55]
[1732032481459,0.7835,3106.2,3104.9,0.55]
[1732032481611,1.50147691,3106.2,3104.9,0.55]
[1732032482254,0.7821,3106.1,3104.6,3.41648617]
[1732032482407,0.7821,3106.0,3104.7,3.22083]
[1732032482741,0.7821,3106.0,3104.6,3.41648617]
[1732032482742,0.7821,3106.0,3104.8,3.22071]
[1732032482921,0.7821,3106.0,3105.1,0.64448629]
[1732032483130,0.7821,3106.0,3105.2,3.22037]
[1732032483554,0.7821,3106.0,3105.1,0.64448629]
[1732032483907,3.82241681,3105.9,3104.6,3.22096]
[1732032484113,0.7625,3105.7,3104.7,0.65189048]
[1732032485813,0.7582,3105.2,3104.5,0.64405056]
[1732032488463,0.7582,3105.2,3104.7,3.22088]
[1732032488631,3.82241681,3106.3,3104.5,0.64405056]
[1732032488632,0.7592,3106.2,3104.8,0.322088]
[1732032488959,0.7592,3106.2,3104.5,0.64405056]
[1732032488960,0.7592,3106.2,3104.6,0.55]
[1732032489259,0.7592,3106.2,3105.0,0.8002]
[1732032489581,0.7727,3106.0,3104.7,3.22091]
[1732032489852,0.7727,3106.0,3105.2,0.64141179]
[1732032490153,0.7727,3105.8,3104.6,0.8002]
[1732032490309,0.7727,3105.8,3104.6,4.02116]
[1732032490513,0.7727,3105.8,3104.8,3.2208]
[1732032491051,0.7727,3105.8,3104.6,4.02115]
[1732032491223,0.45951168,3105.7,3104.6,4.02115]
[1732032491624,0.45951168,3105.7,3104.6,4.02118]
[1732032491840,0.7707,3106.0,3104.4,3.22114]
[1732032492041,0.7707,3106.0,3104.6,3.22102]
[1732032492354,0.7707,3106.0,3104.8,0.65919357]
[1732032492556,0.7707,3105.8,3104.8,0.65919357]
[1732032493549,0.39324168,3106.6,3104.9,0.55]
[1732032493724,0.7707,3106.5,3105.2,3.22039]
[1732032494261,0.7807,3106.5,3105.0,3.22053]
[1732032494558,0.7707,3106.3,3105.0,3.22053]
[1732032494762,0.7707,3106.3,3104.9,3.77065]
[1732032495415,0.7707,3106.3,3105.0,3.22056]
[1732032495619,0.7707,3106.3,3104.8,3.22073]
[1732032495819,0.7807,3106.3,3104.7,3.98116]
[1732032496257,0.7807,3106.3,3104.8,3.22079]
[1732032496689,0.7807,3106.3,3104.7,3.22086]
[1732032497130,3.82241681,3106.2,3104.7,3.22086]
[1732032497340,0.8274,3106.0,3104.7,3.22086]
[1732032497667,0.8274,3106.0,3104.5,3.22107]
[1732032497876,0.8274,3106.0,3104.7,3.2209]
[1732032498334,0.8274,3106.0,3104.8,3.22079]
[1732032498829,0.8274,3106.0,3104.6,3.22094]
[1732032499023,0.8274,3106.0,3104.7,3.22082]
[1732032499321,0.8274,3106.0,3105.0,0.63024303]
[1732032500169,0.8274,3106.0,3104.4,0.55]
[1732032500379,0.8274,3106.0,3104.6,0.63275294]
[1732032501240,0.8314,3105.8,3104.6,0.63275294]
[1732032503361,0.8314,3105.8,3105.2,3.22033]
[1732032504845,0.8314,3105.8,3105.3,3.22027]
[1732032505045,0.8314,3105.8,3105.0,3.22055]
[1732032505281,0.8314,3105.8,3105.0,3.57555]
[1732032505485,0.8314,3105.8,3105.2,3.22039]
[1732032505672,0.8314,3105.8,3105.4,0.63736786]
[1732032506248,0.8314,3105.8,3104.7,0.8185]
[1732032506593,0.8314,3105.8,3105.1,0.65120829]
[1732032506752,0.8314,3105.8,3105.4,3.22014]
[1732032506949,4.70071595,3107.1,3105.4,4.339054]
[1732032506950,0.8001,3106.1,3105.4,4.339054]
[1732032507214,0.8001,3106.1,3105.5,3.22]
[1732032507704,0.8001,3106.1,3105.6,3.21989]
[1732032507903,0.8001,3106.1,3105.5,6.44003]
[1732032508113,0.8001,3106.1,3105.5,3.22]
[1732032508417,0.7927,3107.1,3105.7,3.21987]
[1732032508607,0.7927,3107.1,3105.7,6.43967]
[1732032508767,0.8206,3106.9,3105.7,3.2198]
[1732032509478,0.8206,3106.9,3106.0,0.63377335]
[1732032511892,0.7732,3106.8,3106.0,0.63377335]
[1732032512210,0.7532,3106.6,3104.8,0.7646]
[1732032512443,0.79538125,3106.7,3104.8,0.7646]
[1732032512444,3.82241681,3106.5,3104.8,0.7646]
[1732032512571,0.7532,3106.3,3105.4,0.64200613]
[1732032512780,0.7532,3106.3,3104.4,0.7646]
[1732032513074,0.7532,3106.2,3104.4,0.7646]
[1732032513271,0.7532,3106.2,3103.9,3.82241681]
[1732032513272,0.7532,3106.0,3104.1,0.7646]
[1732032513890,0.8235,3105.9,3104.1,0.7646]
[1732032514122,3.35819573,3105.9,3104.1,0.7646]
[1732032514324,0.8235,3105.8,3104.1,0.7646]
[1732032514483,0.8235,3105.6,3104.2,0.55]
[1732032514821,0.8235,3105.6,3104.6,0.65397497]
[1732032515528,0.8235,3105.5,3103.6,0.8102]
[1732032515682,0.8235,3105.5,3103.6,1.27346168]
[1732032515886,3.36227991,3105.4,3103.6,1.27346168]
[1732032516086,0.8235,3105.3,3103.6,1.33452885]
[1732032516326,0.8135,3105.2,3103.7,0.51569457]
[1732032516735,0.8135,3105.2,3103.8,0.55]
[1732032517252,0.8135,3105.2,3103.6,0.8102]
[1732032517544,3.36227991,3104.8,3103.0,0.8235]
[1732032517845,0.7735,3104.5,3103.0,0.8235]
[1732032518136,0.7735,3104.4,3103.6,0.63665275]
[1732032520239,0.7735,3104.4,3103.7,1.331]
[1732032520592,0.7735,3104.4,3103.7,0.55]
[1732032521041,0.7735,3104.4,3103.6,0.63665275]
[1732032521927,0.7735,3104.4,3103.1,3.8087]
[1732032521928,0.7735,3104.4,3103.1,0.8087]
[1732032522116,0.41341193,3104.3,3103.1,0.8087]
[1732032522337,4.13411925,3104.4,3103.1,0.8087]
[1732032522538,3.36061925,3104.3,3103.5,0.64334826]
[1732032522772,4.13411925,3104.4,3103.5,0.64334826]
[1732032522978,0.41341193,3104.3,3103.5,0.64334826]
[1732032523137,0.7735,3104.4,3103.5,0.64334826]
[1732032524925,0.7701,3104.3,3103.5,0.64334826]
[1732032525127,0.7701,3104.0,3102.8,0.8047]
[1732032525361,0.41307193,3103.9,3102.8,0.8047]
[1732032525546,4.13071925,3104.0,3102.8,0.8047]
[1732032526336,0.7701,3104.0,3102.9,0.55]
[1732032527029,0.7701,3104.0,3102.8,0.8047]
[1732032527394,0.8196,3103.8,3102.8,0.8047]
[1732032527555,0.8196,3103.8,3102.5,0.8076]
[1732032527743,0.8196,3103.8,3103.2,0.65676908]
[1732032528285,0.7728,3103.6,3103.2,0.65676908]
[1732032528850,0.7728,3103.6,3102.2,0.7812]
[1732032529245,0.7728,3103.6,3102.9,0.63126848]
[1732032529743,0.7728,3103.6,3102.3,0.55]
[1732032529983,0.7728,3103.6,3102.8,0.64421197]
[1732032530574,7.85774836,3104.2,3102.8,0.64421197]
[1732032530575,0.7991,3104.2,3103.0,0.55]
[1732032531123,0.7991,3104.2,3102.9,0.7674]
[1732032531481,0.7991,3104.2,3102.8,0.64421197]
[1732032532117,0.7991,3104.2,3103.0,0.7907]
[1732032532427,0.7991,3104.2,3103.1,0.55]
[1732032532793,0.7991,3104.2,3103.3,0.63840546]
[1732032534677,4.12667503,3104.8,3103.4,0.8193]
[1732032534988,0.7769,3104.8,3103.4,4.04147]
[1732032535193,0.7769,3104.8,3103.4,0.8193]
[1732032535393,0.7769,3104.8,3103.4,4.04154]
[1732032535596,0.7769,3104.8,3103.4,4.04156]
[1732032535802,0.7769,3104.8,3103.9,0.63299415]
[1732032536542,0.7769,3104.8,3103.4,0.8193]
[1732032537044,0.7884,3104.7,3103.4,0.8193]
[1732032537190,0.7884,3104.6,3103.4,0.8193]
[1732032538308,0.7884,3104.6,3103.5,0.65463138]
[1732032539223,0.7884,3104.6,3103.4,0.8193]
[1732032539420,0.7884,3104.6,3103.4,1.46163209]
[1732032540425,0.7884,3104.6,3103.5,3.22211]
[1732032540758,0.7884,3104.6,3103.6,0.46837421]
[1732032541211,0.7884,3104.6,3103.4,1.46163209]
[1732032542145,0.7884,3104.6,3103.7,0.8099]
[1732032542464,0.7904,3104.9,3103.9,3.22169]
[1732032542640,0.7904,3104.9,3104.0,0.8099]
[1732032543024,2.44840211,3105.2,3104.2,3.22142]
[1732032543252,0.7883,3105.5,3104.3,4.05407]
[1732032543553,0.7983,3105.5,3104.3,0.8328]
[1732032543710,0.7983,3105.5,3103.2,0.01]
[1732032543711,0.7883,3105.3,3103.7,0.55]
[1732032543909,0.7883,3105.3,3104.0,3.22164]
[1732032544250,0.8204,3105.2,3103.8,0.8094]
[1732032544460,1.61632856,3105.2,3103.8,0.8094]
[1732032544617,1.61632856,3105.2,3103.9,3.22174]
[1732032544818,1.61632856,3105.2,3103.8,0.8094]
[1732032545065,0.7789,3105.0,3103.8,1.46575001]
[1732032545418,0.7535,3104.9,3103.8,1.46575001]
[1732032545624,3.7535,3104.9,3103.8,1.46575001]
[1732032546167,0.7535,3104.9,3103.9,3.22168]
[1732032546339,0.7535,3104.9,3103.9,3.690423]
[1732032546762,0.7535,3104.9,3104.0,3.22164]
[1732032547062,0.7535,3104.9,3103.8,1.46575001]
[1732032547473,0.7535,3104.9,3103.8,0.65635001]
[1732032547619,0.7535,3104.9,3103.5,0.7505]
[1732032547620,0.7682,3104.8,3103.5,0.7505]
[1732032548264,0.7682,3104.8,3103.7,0.65282204]
[1732032550776,3.82241681,3104.6,3103.1,0.791]
[1732032551090,0.8318,3104.4,3103.1,0.791]
[1732032551237,0.8318,3104.4,3103.2,0.65153417]
[1732032551847,0.8318,3104.0,3102.8,0.7524]
[1732032552059,0.7659,3103.8,3102.8,0.7524]
[1732032552609,0.7659,3103.8,3102.9,0.65462506]
[1732032554771,0.7659,3103.8,3102.9,3.87740506]
[1732032555671,0.7659,3103.8,3102.9,0.65462506]
[1732032555910,0.7659,3103.8,3102.9,1.11761957]
[1732032556083,0.7659,3103.8,3102.9,0.65462506]
[1732032556281,0.7659,3103.8,3102.8,0.7524]
[1732032556487,0.7659,3103.8,3102.8,4.63076848]
[1732032556687,0.7659,3103.8,3102.9,3.22279]
[1732032556987,0.7502,3104.3,3103.2,0.55]
[1732032559313,0.7502,3104.3,3103.3,0.63494005]
[1732032563053,0.7502,3104.3,3102.7,1.3737]
[1732032563625,0.7502,3104.3,3102.7,4.59666]
[1732032563867,0.7502,3104.3,3102.9,3.22277]
[1732032564029,0.7502,3104.3,3103.1,0.8224]
[1732032564467,0.7502,3104.3,3103.1,4.04495]
[1732032564639,0.7502,3104.3,3103.2,1.10899868]
[1732032564830,0.7502,3104.3,3103.3,3.22231]
[1732032565073,0.7502,3104.3,3103.2,1.10899868]
[1732032565355,0.7502,3104.3,3103.2,4.33146868]